lending/lending_fUSD_20251218
["ID","MTS","AMOUNT","RATE_DAILY","PERIOD"]
[399009359,1766069448454,-300.0,0.00040889,10]
[399009360,1766069448464,-1123.4627,0.00040891,3]
[399009361,1766069448475,-2000.0,0.00040891,3]
[399009362,1766069448488,-150.0,0.00040899,120]
[399009363,1766069448502,-500.0,0.00040899,60]
[399009364,1766069448512,-300.0,0.00040899,10]
[399009365,1766069448522,-300.0,0.00040899,10]
[399009366,1766069448532,-99999.999999,0.000409,120]
[399009367,1766069448542,-100000.0,0.000409,120]
[399009368,1766069448552,-151.0,0.000409,120]
[399009369,1766069448563,-151.0,0.000409,120]
[399009370,1766069448574,-130883.3808,0.000409,120]
[399009371,1766069448584,-151.0,0.000409,120]
[399009372,1766069448596,-151.0,0.000409,120]
[399009373,1766069448606,-151.0,0.000409,120]
[399009374,1766069448616,-1006.0,0.000409,7]
[399009375,1766069448626,-151.0,0.000409,120]
[399009376,1766069448635,-151.0,0.000409,120]
[399009377,1766069448645,-151.0,0.000409,120]
[399009378,1766069448655,-500.0,0.00040913,14]
[399009379,1766069448664,-500.0,0.00040913,14]
[399009380,1766069448674,-500.0,0.00040913,14]
[399009381,1766069448683,-202.5810054,0.00040995,8]
[399009382,1766069448694,-1039.46683306,0.00040995,2]
[399009383,1766069448703,-2605.30187573,0.00040995,2]
[399009384,1766069448713,-343.46387208,0.00040995,2]
[399009385,1766069448725,-169.21875559,0.00040995,2]
[399009386,1766069448739,-642.9345,0.00040995,2]
[399009387,1766069448751,-169.21875559,0.00040996,2]
[399009388,1766069448761,-169.21875559,0.00040997,2]
[399009389,1766069448771,-1039.46683306,0.00040998,2]
[399009390,1766069448781,-2605.30187573,0.00040998,2]
[399009391,1766069448791,-343.46387208,0.00040998,2]
[399009392,1766069448801,-169.21875559,0.00040998,2]
[399009393,1766069448811,-794.97980188,0.00040998,2]
[399009394,1766069448820,-794.97980185,0.00040998,2]
[399009395,1766069448830,-794.97980185,0.00040999,2]
[399009396,1766069448840,-500.0,0.00040999,60]
[399009397,1766069448850,-169.21875559,0.00040999,2]
[399009398,1766069448860,-794.97980185,0.00040999,2]
[399009399,1766069448870,-794.97980185,0.00041,2]
[399009400,1766069448880,-150.0,0.00041,23]
[399009401,1766069448894,-919.45817963,0.00041,120]
[399009402,1766069448904,-250.0,0.00041,45]
[399009403,1766069448913,-250.0,0.00041,45]
[399009404,1766069448923,-250.0,0.00041,45]
[399009405,1766069448936,-250.0,0.00041,45]
[399009406,1766069448946,-250.0,0.00041,45]
[399009407,1766069448957,-200.0,0.00041,120]
[399009408,1766069448967,-167.30471698,0.00041,30]
[399009409,1766069448977,-165.0,0.00041,120]
[399009410,1766069448987,-151.0,0.00041,120]
[399009411,1766069448997,-151.0,0.00041,120]
[399009412,1766069449008,-2009.12,0.00041,120]
[399009413,1766069449017,-1377.74126144,0.00041,120]
[399009414,1766069449027,-1377.74126144,0.00041,120]
[399009415,1766069449037,-1377.74126144,0.00041,120]
[399009416,1766069449047,-1377.74126144,0.00041,120]
[399009417,1766069449065,-1377.74126144,0.00041,120]
[399009418,1766069449088,-1377.74126144,0.00041,120]
[399009419,1766069449107,-1377.74126144,0.00041,120]
[399009420,1766069449117,-1377.74126144,0.00041,120]
[399009421,1766069449128,-1377.74126144,0.00041,120]
[399009422,1766069449139,-1377.74126144,0.00041,120]
[399009423,1766069449150,-1377.74126144,0.00041,120]
[399009424,1766069449160,-1377.74126144,0.00041,120]
[399009425,1766069449170,-1377.74126144,0.00041,120]
[399009426,1766069449182,-1377.74126144,0.00041,120]
[399009427,1766069449191,-1377.74126144,0.00041,120]
[399009428,1766069449201,-1377.74126144,0.00041,120]
[399009429,1766069449211,-1377.74126144,0.00041,120]
[399009430,1766069449225,-1377.74126144,0.00041,120]
[399009431,1766069449234,-1377.74126144,0.00041,120]
[399009432,1766069449244,-1377.74,0.00041,120]
[399009433,1766069449256,-3214.72961003,0.00041,120]
[399009434,1766069449267,-3214.72961003,0.00041,120]
[399009435,1766069449278,-3214.72961003,0.00041,120]
[399009436,1766069449288,-3214.72961003,0.00041,120]
[399009437,1766069449299,-3214.72961003,0.00041,120]
[399009438,1766069449309,-3214.72961003,0.00041,120]
[399009439,1766069449319,-3214.72961003,0.00041,120]
[399009440,1766069449330,-3214.72961003,0.00041,120]
[399009441,1766069449340,-3214.72961003,0.00041,120]
[399009442,1766069449350,-3214.72961003,0.00041,120]
[399009443,1766069449360,-3214.72961003,0.00041,120]
[399009444,1766069449370,-3214.72961003,0.00041,120]
[399009445,1766069449379,-3214.72961003,0.00041,120]
[399009446,1766069449389,-3214.72961003,0.00041,120]
[399009447,1766069449398,-3214.72961003,0.00041,120]
[399009448,1766069449408,-3214.72961003,0.00041,120]
[399009449,1766069449417,-3214.72961003,0.00041,120]
[399009450,1766069449427,-3214.72961003,0.00041,120]
[399009451,1766069449437,-3214.72961003,0.00041,120]
[399009452,1766069449446,-3214.72,0.00041,120]
[399009453,1766069449456,-1039.46683306,0.00041,2]
[399009454,1766069449465,-954.08644159,0.00041,120]
[399009455,1766069449475,-954.08644159,0.00041,120]
[399009456,1766069449485,-954.08644159,0.00041,120]
[399009457,1766069449495,-954.08644159,0.00041,120]
[399009458,1766069449505,-954.08644159,0.00041,120]
[399009459,1766069449515,-954.08644159,0.00041,120]
[399009460,1766069449525,-954.08644159,0.00041,120]
[399009461,1766069449535,-954.08644159,0.00041,120]
[399009462,1766069449544,-954.08644159,0.00041,120]
[399009463,1766069449554,-954.08644159,0.00041,120]
[399009464,1766069449564,-954.08644159,0.00041,120]
[399009465,1766069449573,-954.08644159,0.00041,120]
[399009466,1766069449583,-954.08644159,0.00041,120]
[399009467,1766069449592,-954.08644159,0.00041,120]
[399009468,1766069449601,-954.08644159,0.00041,120]
[399009469,1766069449611,-954.08644159,0.00041,120]
[399009470,1766069449620,-954.08644159,0.00041,120]
[399009471,1766069449631,-954.08644159,0.00041,120]
[399009472,1766069449642,-954.08644159,0.00041,120]
[399009473,1766069449653,-954.08,0.00041,120]
[399009474,1766069449663,-2226.20169705,0.00041,120]
[399009475,1766069449672,-2226.20169705,0.00041,120]
[399009476,1766069449681,-2226.20169705,0.00041,120]
[399009477,1766069449692,-2226.20169705,0.00041,120]
[399009478,1766069449701,-2226.20169705,0.00041,120]
[399009479,1766069449711,-2226.20169705,0.00041,120]
[399009480,1766069449721,-2226.20169705,0.00041,120]
[399009481,1766069449731,-2226.20169705,0.00041,120]
[399009482,1766069449741,-2226.20169705,0.00041,120]
[399009483,1766069449750,-2226.20169705,0.00041,120]
[399009484,1766069449760,-2226.20169705,0.00041,120]
[399009485,1766069449769,-2226.20169705,0.00041,120]
[399009486,1766069449779,-2226.20169705,0.00041,120]
[399009487,1766069449789,-2226.20169705,0.00041,120]
[399009488,1766069449798,-2226.20169705,0.00041,120]
[399009489,1766069449808,-2226.20169705,0.00041,120]
[399009490,1766069449817,-2226.20169705,0.00041,120]
[399009491,1766069449827,-2226.20169705,0.00041,120]
[399009492,1766069450193,-2226.20169705,0.00041,120]
[399009493,1766069450245,-2605.30187573,0.00041,2]
[399009494,1766069450256,-2226.2,0.00041,120]
[399009495,1766069450265,-560.12000067,0.00041,120]
[399009496,1766069450275,-560.12000067,0.00041,120]
[399009497,1766069450286,-560.12000067,0.00041,120]
[399009498,1766069450296,-169.21875559,0.00041,2]
[399009499,1766069450305,-560.12000067,0.00041,120]
[399009500,1766069450314,-560.12000067,0.00041,120]
[399009501,1766069450323,-560.12000067,0.00041,120]
[399009502,1766069450332,-560.12000067,0.00041,120]
[399009503,1766069450341,-560.12000067,0.00041,120]
[399009504,1766069450351,-560.12000067,0.00041,120]
[399009505,1766069450360,-560.12000067,0.00041,120]
[399009506,1766069450369,-560.12000067,0.00041,120]
[399009507,1766069450378,-560.12000067,0.00041,120]
[399009508,1766069450387,-560.12000067,0.00041,120]
[399009509,1766069450396,-560.12000067,0.00041,120]
[399009510,1766069450405,-560.12000067,0.00041,120]
[399009511,1766069450415,-343.46387208,0.00041,2]
[399009512,1766069450424,-560.12000067,0.00041,120]
[399009513,1766069450433,-560.12000067,0.00041,120]
[399009514,1766069450442,-560.12000067,0.00041,120]
[399009515,1766069450451,-560.12000067,0.00041,120]
[399009516,1766069450460,-560.12,0.00041,120]
[399009517,1766069450469,-1306.94666823,0.00041,120]
[399009518,1766069450479,-1306.94666823,0.00041,120]
[399009519,1766069450488,-1306.94666823,0.00041,120]
[399009520,1766069450498,-1306.94666823,0.00041,120]
[399009521,1766069450507,-1306.94666823,0.00041,120]
[399009522,1766069450516,-1306.94666823,0.00041,120]
[399009523,1766069450526,-1306.94666823,0.00041,120]
[399009524,1766069450535,-1306.94666823,0.00041,120]
[399009525,1766069450544,-1306.94666823,0.00041,120]
[399009526,1766069450553,-1306.94666823,0.00041,120]
[399009527,1766069450563,-1306.94666823,0.00041,120]
[399009528,1766069450572,-1306.94666823,0.00041,120]
[399009529,1766069450582,-1306.94666823,0.00041,120]
[399009530,1766069450591,-1306.94666823,0.00041,120]
[399009531,1766069450600,-1306.94666823,0.00041,120]
[399009532,1766069450610,-1306.94666823,0.00041,120]
[399009533,1766069450619,-1306.94666823,0.00041,120]
[399009534,1766069450628,-1306.94666823,0.00041,120]
[399009535,1766069450637,-1306.94666823,0.00041,120]
[399009536,1766069450646,-1306.94,0.00041,120]
[399009537,1766069450655,-1990.59070422,0.00041,15]
[399009538,1766069450665,-1000.0,0.00041,7]
[399009539,1766069450674,-794.97980185,0.00041,2]
[399009540,1766069450684,-1332.0,0.0004102,30]
[399009541,1766069450693,-686.6,0.00041051,30]
[399009542,1766069450703,-705.57,0.00041058,30]
[399009543,1766069450718,-688.08,0.00041061,30]
[399009544,1766069450730,-210.53646549,0.00041068,7]
[399009545,1766069450741,-170.5110613,0.00041068,7]
[399009546,1766069450751,-176.98248069,0.00041068,7]
[399009547,1766069450761,-173.72858,0.00041068,7]
[399009548,1766069450771,-155.55139253,0.00041068,7]
[399009549,1766069450781,-151.75234006,0.00041068,7]
[399009550,1766069450791,-156.02339271,0.00041068,7]
[399009551,1766069450801,-253.48567483,0.00041068,7]
[399009552,1766069450811,-150.00000002,0.00041068,7]
[399009553,1766069450821,-227.81788031,0.00041068,7]
[399009554,1766069450830,-687.49,0.00041072,30]
[399009555,1766069450840,-702.16,0.00041072,30]
[399009556,1766069450850,-500.77132056,0.00041073,5]
[399009557,1766069450859,-500.0,0.00041073,5]
[399009558,1766069450869,-500.0,0.00041073,5]
[399009559,1766069450880,-333.88776573,0.00041073,5]
[399009560,1766069450895,-2799.26,0.00041085,120]
[399009561,1766069450905,-3000.0,0.00041094,120]
[399009562,1766069450914,-500.0,0.00041094,60]
[399009563,1766069450924,-500.0,0.00041094,60]
[399009564,1766069450935,-500.0,0.00041094,60]
[399009565,1766069450945,-500.0,0.00041094,60]
[399009566,1766069450955,-500.0,0.00041094,60]
[399009567,1766069450965,-500.0,0.00041094,60]
[399009568,1766069450975,-585.0,0.00041095,120]
[399009569,1766069450984,-202.10586706,0.00041095,31]
[399009570,1766069450994,-800.0,0.00041095,15]
[399009571,1766069451005,-800.0,0.00041095,15]
[399009572,1766069451015,-800.0,0.00041095,15]
[399009573,1766069451025,-800.0,0.00041095,15]
[399009574,1766069451035,-800.0,0.00041095,15]
[399009575,1766069451044,-800.0,0.00041095,15]
[399009576,1766069451054,-800.0,0.00041095,15]
[399009577,1766069451063,-800.0,0.00041095,15]
[399009578,1766069451073,-482.31118949,0.00041095,120]
[399009579,1766069451083,-510.04,0.00041095,120]
[399009580,1766069451097,-632.38,0.00041095,120]
[399009581,1766069451108,-500.0,0.00041095,120]
[399009582,1766069451118,-555.1,0.00041095,120]
[399009583,1766069451128,-500.0,0.00041095,120]
[399009584,1766069451138,-500.0,0.00041095,120]
[399009585,1766069451148,-500.0,0.00041095,120]
[399009586,1766069451158,-287.96,0.00041095,120]
[399009587,1766069451168,-500.0,0.00041095,120]
[399009588,1766069451178,-500.0,0.00041095,120]
[399009589,1766069451188,-168.08,0.00041095,120]
[399009590,1766069451199,-500.0,0.00041095,120]
[399009591,1766069451209,-584.13,0.00041095,120]
[399009592,1766069451219,-500.0,0.00041095,120]
[399009593,1766069451228,-500.0,0.00041095,120]
[399009594,1766069451239,-624.36,0.00041095,120]
[399009595,1766069451249,-338.14683305,0.00041095,120]
[399009596,1766069451259,-500.0,0.00041095,120]
[399009597,1766069451269,-500.0,0.00041095,120]
[399009598,1766069451282,-500.0,0.00041095,120]
[399009599,1766069451292,-500.0,0.00041095,120]
[399009600,1766069451303,-247.01,0.00041095,120]
[399009601,1766069451313,-500.0,0.00041095,120]
[399009602,1766069451323,-500.0,0.00041095,120]
[399009603,1766069451334,-500.0,0.00041095,120]
[399009604,1766069451344,-217.2,0.00041095,120]
[399009605,1766069451353,-592.04,0.00041095,120]
[399009606,1766069451363,-500.0,0.00041095,120]
[399009607,1766069451373,-500.0,0.00041095,120]
[399009608,1766069451383,-500.0,0.00041095,120]
[399009609,1766069451393,-500.0,0.00041095,120]
[399009610,1766069451402,-519.37,0.00041095,120]
[399009611,1766069451412,-500.0,0.00041095,120]
[399009612,1766069451422,-223.71,0.00041095,120]
[399009613,1766069451431,-500.0,0.00041095,120]
[399009614,1766069451441,-500.0,0.00041095,120]
[399009615,1766069451450,-395.03,0.00041095,120]
[399009616,1766069451460,-500.0,0.00041095,120]
[399009617,1766069451473,-515.71,0.00041095,120]
[399009618,1766069451484,-500.0,0.00041095,120]
[399009619,1766069451494,-500.0,0.00041095,120]
[399009620,1766069451505,-423.72,0.00041095,120]
[399009621,1766069451515,-500.0,0.00041095,120]
[399009622,1766069451525,-500.0,0.00041095,120]
[399009623,1766069451535,-500.0,0.00041095,120]
[399009624,1766069451545,-178.81,0.00041095,120]
[399009625,1766069451554,-500.0,0.00041095,120]
[399009626,1766069451564,-500.0,0.00041095,120]
[399009627,1766069451574,-500.0,0.00041095,120]
[399009628,1766069451584,-500.0,0.00041095,120]
[399009629,1766069451594,-500.0,0.00041095,120]
[399009630,1766069451604,-292.96,0.00041095,120]
[399009631,1766069451614,-529.01,0.00041095,120]
[399009632,1766069451624,-500.0,0.00041095,120]
[399009633,1766069451633,-500.0,0.00041095,120]
[399009634,1766069451643,-500.0,0.00041095,120]
[399009635,1766069451653,-500.0,0.00041095,120]
[399009636,1766069451664,-443.6,0.00041095,120]
[399009637,1766069451675,-500.0,0.00041095,120]
[399009638,1766069451684,-500.0,0.00041095,120]
[399009639,1766069451693,-368.53,0.00041095,120]
[399009640,1766069451703,-500.0,0.00041095,120]
[399009641,1766069451712,-516.13,0.00041095,120]
[399009642,1766069451722,-500.0,0.00041095,120]
[399009643,1766069451732,-500.0,0.00041095,120]
[399009644,1766069451742,-500.0,0.00041095,120]
[399009645,1766069451753,-500.0,0.00041095,120]
[399009646,1766069451762,-500.0,0.00041095,120]
[399009647,1766069451772,-638.67,0.00041095,120]
[399009648,1766069451783,-500.0,0.00041095,120]
[399009649,1766069451792,-640.07,0.00041095,120]
[399009650,1766069451802,-500.0,0.00041095,120]
[399009651,1766069451812,-500.0,0.00041095,120]
[399009652,1766069451822,-500.0,0.00041095,120]
[399009653,1766069451832,-445.05,0.00041095,120]
[399009654,1766069451842,-500.0,0.00041095,120]
[399009655,1766069451852,-500.0,0.00041095,120]
[399009656,1766069451862,-524.83,0.00041095,120]
[399009657,1766069451872,-320.86,0.00041095,120]
[399009658,1766069451883,-500.0,0.00041095,120]
[399009659,1766069451895,-500.0,0.00041095,120]
[399009660,1766069451906,-500.0,0.00041095,120]
[399009661,1766069451915,-590.08,0.00041095,120]
[399009662,1766069451926,-500.0,0.00041095,120]
[399009663,1766069451937,-377.25,0.00041095,120]
[399009664,1766069451947,-500.0,0.00041095,120]
[399009665,1766069451958,-500.0,0.00041095,120]
[399009666,1766069451969,-500.0,0.00041095,120]
[399009667,1766069451979,-500.0,0.00041095,120]
[399009668,1766069451989,-500.0,0.00041095,120]
[399009669,1766069452002,-500.0,0.00041095,120]
[399009670,1766069452012,-500.0,0.00041095,120]
[399009671,1766069452022,-500.0,0.00041095,120]
[399009672,1766069452033,-368.53,0.00041095,120]
[399009673,1766069452042,-193.37,0.00041095,120]
[399009674,1766069452052,-500.0,0.00041095,120]
[399009675,1766069452067,-587.55,0.00041095,120]
[399009676,1766069452083,-500.0,0.00041095,120]
[399009677,1766069452094,-500.0,0.00041095,120]
[399009678,1766069452104,-500.0,0.00041095,120]
[399009679,1766069452115,-447.42,0.00041095,120]
[399009680,1766069452125,-500.0,0.00041095,120]
[399009681,1766069452136,-296.28,0.00041095,120]
[399009682,1766069452147,-500.0,0.00041095,120]
[399009683,1766069452158,-500.0,0.00041095,120]
[399009684,1766069452169,-632.94,0.00041095,120]
[399009685,1766069452179,-500.0,0.00041095,120]
[399009686,1766069452190,-500.0,0.00041095,120]
[399009687,1766069452201,-500.0,0.00041095,120]
[399009688,1766069452211,-256.69,0.00041095,120]
[399009689,1766069452222,-500.0,0.00041095,120]
[399009690,1766069452232,-500.0,0.00041095,120]
[399009691,1766069452243,-318.97,0.00041095,120]
[399009692,1766069452258,-500.0,0.00041095,120]
[399009693,1766069452269,-500.0,0.00041095,120]
[399009694,1766069452279,-500.0,0.00041095,30]
[399009695,1766069452290,-500.0,0.00041095,30]
[399009696,1766069452301,-296.87,0.00041095,30]
[399009697,1766069452311,-500.0,0.00041095,120]
[399009698,1766069452322,-500.0,0.00041095,120]
[399009699,1766069452332,-500.0,0.00041095,120]
[399009700,1766069452342,-500.0,0.00041095,120]
[399009701,1766069452354,-500.0,0.00041095,120]
[399009702,1766069452368,-500.0,0.00041095,120]
[399009703,1766069452384,-500.0,0.00041095,120]
[399009704,1766069452395,-500.0,0.00041095,120]
[399009705,1766069452405,-500.0,0.00041095,120]
[399009706,1766069452415,-500.0,0.00041095,120]
[399009707,1766069452425,-366.0,0.00041095,120]
[399009708,1766069452435,-500.0,0.00041095,120]
[399009709,1766069452449,-553.26,0.00041095,120]
[399009710,1766069452460,-500.0,0.00041095,120]
[399009711,1766069452470,-500.0,0.00041095,120]
[399009712,1766069452480,-500.0,0.00041095,120]
[399009713,1766069452490,-500.0,0.00041095,120]
[399009714,1766069452503,-500.0,0.00041095,120]
[399009715,1766069452513,-537.69,0.00041095,120]
[399009716,1766069452523,-500.0,0.00041095,120]
[399009717,1766069452532,-500.0,0.00041095,120]
[399009718,1766069452542,-500.0,0.00041095,120]
[399009719,1766069452552,-647.07,0.00041095,120]
[399009720,1766069452562,-500.0,0.00041095,120]
[399009721,1766069452572,-500.0,0.00041095,120]
[399009722,1766069452582,-500.0,0.00041095,120]
[399009723,1766069452592,-500.0,0.00041095,120]
[399009724,1766069452603,-500.0,0.00041095,120]
[399009725,1766069452613,-500.0,0.00041095,120]
[399009726,1766069452624,-500.0,0.00041095,120]
[399009727,1766069452638,-500.0,0.00041095,120]
[399009728,1766069452648,-557.68,0.00041095,120]
[399009729,1766069452658,-500.0,0.00041095,120]
[399009730,1766069452668,-153.27547543,0.00041095,120]
[399009731,1766069452678,-500.0,0.00041095,120]
[399009732,1766069452688,-500.0,0.00041095,120]
[399009733,1766069452698,-500.0,0.00041095,30]
[399009734,1766069452708,-500.0,0.00041095,30]
[399009735,1766069452719,-500.0,0.00041095,120]
[399009736,1766069452729,-500.0,0.00041095,30]
[399009737,1766069452739,-500.0,0.00041095,120]
[399009738,1766069452751,-500.0,0.00041095,30]
[399009739,1766069452761,-500.0,0.00041095,120]
[399009740,1766069452771,-587.74,0.00041095,30]
[399009741,1766069452781,-376.15,0.00041095,120]
[399009742,1766069452791,-500.0,0.00041095,120]
[399009743,1766069452801,-500.0,0.00041095,120]
[399009744,1766069452813,-500.0,0.00041095,120]
[399009745,1766069452823,-260.76,0.00041095,120]
[399009746,1766069452838,-500.0,0.00041095,14]
[399009747,1766069452848,-239.45,0.00041095,14]
[399009748,1766069452858,-500.0,0.00041095,120]
[399009749,1766069452869,-500.0,0.00041095,120]
[399009750,1766069452880,-500.0,0.00041095,120]
[399009751,1766069452895,-500.0,0.00041095,120]
[399009752,1766069452906,-263.11,0.00041095,120]
[399009753,1766069452919,-500.0,0.00041095,30]
[399009754,1766069452930,-500.0,0.00041095,120]
[399009755,1766069452940,-500.0,0.00041095,120]
[399009756,1766069452952,-500.0,0.00041095,120]
[399009757,1766069452965,-637.66,0.00041095,120]
[399009758,1766069452976,-500.0,0.00041095,120]
[399009759,1766069452986,-500.0,0.00041095,120]
[399009760,1766069452996,-500.0,0.00041095,120]
[399009761,1766069453010,-180.32,0.00041095,120]
[399009762,1766069453020,-500.0,0.00041095,120]
[399009763,1766069453031,-500.0,0.00041095,120]
[399009764,1766069453042,-500.0,0.00041095,120]
[399009765,1766069453056,-500.0,0.00041095,120]
[399009766,1766069453067,-500.0,0.00041095,120]
[399009767,1766069453078,-500.0,0.00041095,120]
[399009768,1766069453088,-500.0,0.00041095,120]
[399009769,1766069453099,-500.0,0.00041095,120]
[399009770,1766069453110,-343.32,0.00041095,120]
[399009771,1766069453120,-500.0,0.00041095,120]
[399009772,1766069453131,-342.09,0.00041095,120]
[399009773,1766069453141,-500.0,0.00041095,120]
[399009774,1766069453151,-500.0,0.00041095,120]
[399009775,1766069453162,-500.0,0.00041095,120]
[399009776,1766069453172,-635.51,0.00041095,120]
[399009777,1766069453183,-500.0,0.00041095,120]
[399009778,1766069453194,-500.0,0.00041095,120]
[399009779,1766069453204,-591.64,0.00041095,120]
[399009780,1766069453215,-500.0,0.00041095,120]
[399009781,1766069453226,-500.0,0.00041095,120]
[399009782,1766069453236,-587.24,0.00041095,120]
[399009783,1766069453250,-500.0,0.00041095,120]
[399009784,1766069453261,-500.0,0.00041095,120]
[399009785,1766069453272,-500.0,0.00041095,120]
[399009786,1766069453283,-500.0,0.00041095,120]
[399009787,1766069453293,-500.0,0.00041095,120]
[399009788,1766069453305,-500.0,0.00041095,120]
[399009789,1766069453315,-500.0,0.00041095,120]
[399009790,1766069453326,-500.0,0.00041095,120]
[399009791,1766069453337,-268.61,0.00041095,120]
[399009792,1766069453347,-500.0,0.00041095,120]
[399009793,1766069453358,-500.0,0.00041095,120]
[399009794,1766069453368,-500.0,0.00041095,120]
[399009795,1766069453379,-536.84,0.00041095,120]
[399009796,1766069453390,-175.22,0.00041095,120]
[399009797,1766069453401,-500.0,0.00041095,120]
[399009798,1766069453413,-500.0,0.00041095,120]
[399009799,1766069453424,-500.0,0.00041095,120]
[399009800,1766069453435,-503.79,0.00041095,120]
[399009801,1766069453446,-500.0,0.00041095,120]
[399009802,1766069453458,-500.0,0.00041095,120]
[399009803,1766069453469,-500.0,0.00041095,120]
[399009804,1766069453479,-418.83,0.00041095,120]
[399009805,1766069453489,-500.0,0.00041095,120]
[399009806,1766069453501,-500.0,0.00041095,120]
[399009807,1766069453512,-500.0,0.00041095,120]
[399009808,1766069453522,-616.01,0.00041095,120]
[399009809,1766069453532,-407.86,0.00041095,120]
[399009810,1766069453542,-500.0,0.00041095,120]
[399009811,1766069453552,-567.5,0.00041095,120]
[399009812,1766069453562,-500.0,0.00041095,120]
[399009813,1766069453572,-500.0,0.00041095,14]
[399009814,1766069453582,-500.0,0.00041095,120]
[399009815,1766069453592,-338.39,0.00041095,120]
[399009816,1766069453602,-500.0,0.00041095,120]
[399009817,1766069453613,-500.0,0.00041095,120]
[399009818,1766069453622,-500.0,0.00041095,120]
[399009819,1766069453632,-500.0,0.00041095,120]
[399009820,1766069453641,-500.0,0.00041095,120]
[399009821,1766069453651,-544.45,0.00041095,120]
[399009822,1766069453662,-500.0,0.00041095,120]
[399009823,1766069453672,-524.62,0.00041095,120]
[399009824,1766069453683,-500.0,0.00041095,120]
[399009825,1766069453693,-500.0,0.00041095,120]
[399009826,1766069453703,-500.0,0.00041095,120]
[399009827,1766069453713,-500.0,0.00041095,120]
[399009828,1766069453722,-500.0,0.00041095,120]
[399009829,1766069453732,-500.0,0.00041095,60]
[399009830,1766069453742,-500.0,0.00041095,120]
[399009831,1766069453754,-500.0,0.00041095,120]
[399009832,1766069453765,-500.0,0.00041095,120]
[399009833,1766069453775,-500.0,0.00041095,120]
[399009834,1766069453785,-197.27,0.00041095,120]
[399009835,1766069453795,-500.0,0.00041095,120]
[399009836,1766069453806,-500.0,0.00041095,120]
[399009837,1766069453816,-500.0,0.00041095,120]
[399009838,1766069453833,-500.0,0.00041095,120]
[399009839,1766069453847,-500.0,0.00041095,120]
[399009840,1766069453858,-370.53,0.00041095,120]
[399009841,1766069453868,-500.0,0.00041095,120]
[399009842,1766069453879,-566.89,0.00041095,120]
[399009843,1766069453892,-500.0,0.00041095,120]
[399009844,1766069453902,-500.0,0.00041095,120]
[399009845,1766069453913,-500.0,0.00041095,120]
[399009846,1766069453925,-488.0,0.00041095,120]
[399009847,1766069453935,-500.0,0.00041095,60]
[399009848,1766069453945,-500.0,0.00041095,120]
[399009849,1766069453956,-587.19271952,0.00041095,120]
[399009850,1766069453968,-518.67,0.00041095,120]
[399009851,1766069453978,-500.0,0.00041095,120]
[399009852,1766069453989,-500.0,0.00041095,120]
[399009853,1766069454000,-500.0,0.00041095,120]
[399009854,1766069454010,-500.0,0.00041095,120]
[399009855,1766069454021,-500.0,0.00041095,120]
[399009856,1766069454031,-500.0,0.00041095,120]
[399009857,1766069454041,-500.43,0.00041095,120]
[399009858,1766069454051,-500.0,0.00041095,120]